bitfinex-derivatives/quotes_BNBF0:USTF0_20250115
["timestamp","ask_amount","ask_price","bid_price","bid_amount"]
[1736957806233,0.26051232,705.71,705.04,0.352]
[1736957806632,0.26049187,705.7,705.04,0.352]
[1736957806829,0.26049187,705.69,705.04,0.352]
[1736957807033,0.26049187,705.68,705.04,0.352]
[1736957807232,0.26049187,705.67,705.04,0.352]
[1736957807433,0.54391448,705.66,705.04,0.352]
[1736957807633,0.54391849,705.65,705.04,0.352]
[1736957807832,0.28343064,705.64,705.04,0.352]
[1736957808032,0.26048844,705.63,705.04,0.352]
[1736957808335,0.28343867,705.62,705.04,0.352]
[1736957809028,0.26048365,705.61,705.04,0.352]
[1736957809230,0.28344671,705.6,705.04,0.352]
[1736957817042,0.26053374,705.59,705.04,0.352]
[1736957817434,0.28344671,705.6,705.04,0.352]
[1736957834657,0.26050705,705.59,705.04,0.352]
[1736957834861,0.28345474,705.58,705.04,0.352]
[1736957837861,1.34270422,705.58,705.04,0.352]
[1736957838860,0.26053522,705.57,705.04,0.352]
[1736957839054,0.26053667,705.57,705.04,0.352]
[1736957839259,0.28346278,705.56,705.04,0.352]
[1736957839854,0.26054239,705.55,705.04,0.352]
[1736957840059,0.28347081,705.54,705.04,0.352]
[1736957853771,0.26067109,705.53,705.04,0.352]
[1736957855377,1.05924948,705.44,705.04,0.352]
[1736957855876,0.26068176,705.43,703.49,1.05162774]
[1736957856170,0.26068176,705.43,703.5,0.28429282]
[1736957856377,0.26068176,705.42,703.5,0.28429282]
[1736957856575,0.26068176,705.41,703.5,0.28429282]
[1736957856777,0.26068176,705.4,703.5,0.28429282]
[1736957856981,0.26068176,705.39,703.5,0.28429282]
[1736957857183,0.26068176,705.38,703.5,0.28429282]
[1736957857485,0.26068176,705.37,703.5,0.28429282]
[1736957857785,0.26068176,705.36,703.5,0.28429282]
[1736957857976,1.31993124,705.53,703.5,0.28429282]
[1736957858175,1.05924948,705.53,703.5,0.28429282]
[1736957858376,0.26069294,705.52,703.5,0.28429282]
[1736957858880,1.05924948,705.5,703.5,0.28429282]
[1736957859081,0.26069294,705.49,703.5,0.28429282]
[1736957859685,1.05924948,705.46,703.5,0.28429282]
[1736957859887,0.26069294,705.45,703.5,0.28429282]
[1736957861088,0.26073166,705.44,703.5,0.28429282]
[1736957861383,0.26073166,705.43,703.5,0.28429282]
[1736957861683,0.28347081,705.54,703.5,0.28429282]
[1736957861882,0.26071606,705.53,703.5,0.28429282]
[1736957864682,0.28348287,705.51,703.5,0.28429282]
[1736957864884,0.26071606,705.5,703.5,0.28429282]
[1736957865085,0.28349492,705.48,703.5,0.28429282]
[1736957865287,0.26071606,705.47,703.5,0.28429282]
[1736957865883,0.28350698,705.45,703.5,0.28429282]
[1736957866084,0.26071606,705.44,703.5,0.28429282]
[1736957866586,0.26073313,705.43,703.5,0.28429282]
[1736957866785,0.26073313,705.42,703.5,0.28429282]
[1736957866987,0.26073313,705.41,703.5,0.28429282]
[1736957867186,0.28352707,705.4,703.5,0.28429282]
[1736957867386,0.26073313,705.39,703.5,0.28429282]
[1736957867586,0.28353913,705.37,703.5,0.28429282]
[1736957867785,0.26073313,705.36,703.5,0.28429282]
[1736957869188,0.28353913,705.37,703.5,0.28429282]
[1736957869380,0.26071551,705.35,703.5,0.28429282]
[1736957869586,0.26071551,705.34,703.5,0.28429282]
[1736957870388,0.26071551,705.33,703.5,0.28429282]
[1736957870682,0.26071551,705.32,703.5,0.28429282]
[1736957870888,0.26071551,705.34,703.5,0.28429282]
[1736957871091,0.26071551,705.33,703.5,0.28429282]
[1736957871289,0.26071551,705.34,703.5,0.28429282]
[1736957871488,0.26071551,705.35,703.5,0.28429282]
[1736957873188,0.26061772,705.34,703.5,0.28429282]
[1736957874985,0.26061567,705.33,703.5,0.28429282]
[1736957875185,0.26071551,705.35,703.5,0.28429282]
[1736957875390,0.26060889,705.34,703.5,0.28429282]
[1736957876290,0.26071551,705.35,703.51,1.05162774]
[1736957877491,0.26071551,705.35,703.5,0.28429282]
[1736957878287,0.28353913,705.37,703.5,0.28429282]
[1736957879589,0.28353913,705.37,703.51,1.63106211]
[1736957879986,0.28353913,705.37,703.52,0.85074456]
[1736957880192,0.28353913,705.37,703.53,1.63106211]
[1736957880389,0.28353913,705.37,703.5,0.28429282]
[1736957880591,0.28353913,705.37,703.51,5.22720148]
[1736957880886,0.28353913,705.37,703.73,1.05162774]
[1736957881090,0.28353913,705.37,703.74,2.48165531]
[1736957881289,0.28353913,705.37,703.75,2.48165531]
[1736957881486,0.28353913,705.37,703.76,1.63092843]
[1736957881691,0.28353913,705.37,703.77,1.63092843]
[1736957881890,0.28353913,705.37,703.78,4.3764746]
[1736957882091,0.28353913,705.37,703.86,1.05162774]
[1736957884092,0.28353913,705.37,703.84,1.05162774]
[1736957884992,0.28353913,705.37,703.72,1.05162774]
[1736957887193,0.28353913,705.37,703.73,2.48297663]
[1736957887487,0.28353913,705.37,703.74,2.48297663]
[1736957887694,0.28353913,705.37,703.75,2.48297663]
[1736957887992,0.28353913,705.37,703.74,2.74791559]
[1736957887993,0.28353913,705.37,703.76,2.48297663]
[1736957888193,0.28353913,705.37,703.74,2.74791559]
[1736957888194,0.28353913,705.37,703.89,1.05162774]
[1736957888495,0.28353913,705.37,703.9,1.63234143]
[1736957888688,0.28353913,705.37,703.84,1.05162774]
[1736957888993,0.28353913,705.37,703.85,2.48292766]
[1736957889293,0.28353913,705.37,703.86,5.23084325]
[1736957889494,0.28353913,705.37,703.87,2.48292766]
[1736957889695,0.28353913,705.37,703.88,2.48292766]
[1736957889895,0.28353913,705.37,703.89,1.63236957]
[1736957890189,0.28353913,705.37,703.87,1.05162774]
[1736957890394,0.28353913,705.37,703.88,1.63281193]
[1736957890895,0.28353913,705.37,703.89,2.74791559]
[1736957891495,0.28353913,705.37,703.77,1.05162774]
[1736957892794,0.28353913,705.37,703.12,1.05162774]
[1736957894395,0.28353913,705.37,703.13,1.05162774]
[1736957894997,0.28353913,705.37,703.15,1.05162774]
[1736957897701,0.28353913,705.37,703.16,1.05162774]
[1736957898499,0.28353913,705.37,703.18,1.05162774]
[1736957899701,0.28353913,705.37,703.23,1.05162774]
[1736957900599,0.28353913,705.37,702.08,2.14707331]
[1736957900600,0.28353913,705.37,703.2,1.05162774]
[1736957901502,0.28353913,705.37,703.18,1.05162774]
[1736957902296,0.28353913,705.37,702.17,2.14707331]
[1736957902297,0.28353913,705.37,703.21,1.05162774]
[1736957903407,0.28353913,705.37,702.57,2.14707331]
[1736957903408,0.28353913,705.37,703.24,1.05162774]
[1736957904009,0.26067582,705.36,703.24,1.05162774]
[1736957904406,0.26068006,705.35,703.24,1.05162774]
[1736957904707,0.28353913,705.37,703.24,1.05162774]
[1736957905008,0.26067999,705.36,703.24,1.05162774]
[1736957905505,0.28355119,705.34,703.24,1.05162774]
[1736957906609,0.28355119,705.34,703.25,1.05162774]
[1736957906809,0.26066869,705.33,703.25,1.05162774]
[1736957907505,0.26066869,705.33,703.53,1.05162774]
[1736957907710,0.2606561,705.32,703.53,1.05162774]
[1736957907913,0.2606561,705.31,703.53,1.05162774]
[1736957908108,0.28355119,705.34,703.53,1.05162774]
[1736957908109,0.2606561,705.3,703.53,1.05162774]
[1736957908412,0.2606561,705.29,703.53,1.05162774]
[1736957908708,0.2606561,705.28,703.57,1.05162774]
[1736957908905,0.2606561,705.27,703.57,1.05162774]
[1736957909105,0.2606561,705.27,703.58,0.28426049]
[1736957909305,0.28358335,705.26,703.58,0.28426049]
[1736957916713,0.28358335,705.26,703.58,1.33588823]
[1736957917013,0.28358335,705.26,703.59,2.48627935]
[1736957917210,0.28358335,705.26,703.6,1.63535864]
[1736957917815,0.28358335,705.26,703.7,1.05162774]
[1736957918609,0.28358335,705.26,703.58,0.28426049]
[1736957918610,0.28358335,705.26,703.72,1.05162774]
[1736957919512,0.28358335,705.26,703.73,0.2841999]
[1736957937435,0.28358335,705.26,703.91,1.05162774]
[1736957938536,0.28358335,705.26,703.9,1.05162774]
[1736957939140,0.28358335,705.26,703.73,0.2841999]
[1736957940340,0.28358335,705.26,703.77,1.05162774]
[1736957941446,0.28358335,705.26,703.73,0.2841999]
[1736957941447,0.28358335,705.26,703.81,1.05162774]
[1736957943237,0.28358335,705.26,703.73,0.2841999]
[1736957949050,0.28358335,705.26,703.83,1.05162774]
[1736957949946,0.28358335,705.26,703.73,0.2841999]
[1736957955750,0.28358335,705.26,703.74,2.76226227]
[1736957957053,0.28358335,705.26,703.73,0.2841999]
[1736957963561,0.28358335,705.26,703.75,1.05162774]
[1736957963758,0.28358335,705.26,703.76,0.28418779]
[1736957964357,0.26063564,705.25,703.76,0.28418779]
[1736957964660,0.28358335,705.26,703.76,0.28418779]
[1736957969861,0.26069459,705.25,703.76,0.28418779]
[1736957971662,0.26069459,705.24,703.76,0.28418779]
[1736957971859,0.26069459,705.25,703.76,0.28418779]
[1736957972056,0.26069459,705.24,703.76,0.28418779]
[1736957972362,0.26069459,705.23,703.76,0.28418779]
[1736957972560,0.26069459,705.25,703.76,0.28418779]
[1736957972759,0.26069459,705.24,703.76,0.28418779]
[1736957972960,0.28358335,705.26,703.76,0.28418779]
[1736957972961,1.05924948,705.14,703.76,0.28418779]
[1736957973161,0.26069459,705.13,703.76,0.28418779]
[1736957973562,0.26069459,705.13,702.91,1.05162774]
[1736957973765,0.26069459,705.13,702.92,0.28452739]
[1736957974166,1.31994407,705.13,702.92,0.28452739]
[1736957974360,0.26069459,705.12,702.92,0.28452739]
[1736957975463,0.26069459,705.11,702.92,0.28452739]
[1736957975664,0.26069459,705.25,702.92,0.28452739]
[1736957975967,0.26069459,705.24,702.92,0.28452739]
[1736957976264,0.26069459,705.25,702.92,0.28452739]
[1736957976460,0.28358335,705.26,702.92,0.28452739]
[1736957976461,0.26069459,705.24,702.92,0.28452739]
[1736957976661,0.26069459,705.25,702.92,0.28452739]
[1736957976857,0.26069459,705.23,702.92,0.28452739]
[1736957977062,0.26069459,705.24,702.92,0.28452739]
[1736957977263,0.26089398,705.23,702.92,0.28452739]
[1736957977460,0.26089398,705.25,702.92,0.28452739]
[1736957977664,0.26089398,705.24,702.92,0.28452739]
[1736957977865,0.26089398,705.25,702.92,0.28452739]
[1736957978065,0.26089398,705.24,702.92,0.28452739]
[1736957978363,0.26089398,705.23,702.92,0.28452739]
[1736957978570,0.26089398,705.22,702.92,0.28452739]
[1736957978766,0.26089398,705.21,702.92,0.28452739]
[1736957978967,0.26089398,705.2,702.92,0.28452739]
[1736957979169,0.26089398,705.19,702.92,0.28452739]
[1736957979365,0.26089398,705.18,702.92,0.28452739]
[1736957979566,0.26090962,705.17,702.92,0.28452739]
[1736957979767,0.26090962,705.16,702.92,0.28452739]
[1736957980069,1.05924948,705.22,702.92,0.28452739]
[1736957980070,0.26090962,705.15,702.92,0.28452739]
[1736957980270,0.26090962,705.21,702.92,0.28452739]
[1736957980571,0.26090962,705.2,702.92,0.28452739]
[1736957980768,0.26090962,705.22,702.92,0.28452739]
[1736957980969,0.26090962,705.21,702.92,0.28452739]
[1736957981172,0.26090962,705.22,702.92,0.28452739]
[1736957981373,0.26090962,705.21,702.92,0.28452739]
[1736957981567,0.26090962,705.25,702.92,0.28452739]
[1736957981765,0.28358335,705.26,702.92,0.28452739]
[1736957981766,0.26090962,705.24,702.92,0.28452739]
[1736957981968,0.26090962,705.23,702.92,0.28452739]
[1736957982169,0.26090962,705.25,702.92,0.28452739]
[1736957982366,0.26090962,705.22,702.92,0.28452739]
[1736957982567,0.26091344,705.21,702.92,0.28452739]
[1736957982773,0.26091344,705.25,702.92,0.28452739]
[1736957982969,0.26091344,705.2,702.92,0.28452739]
[1736957983272,0.28358335,705.26,702.92,0.28452739]
[1736957983273,0.26091344,705.19,702.92,0.28452739]
[1736957983473,0.26091344,705.25,702.92,0.28452739]
[1736957983770,0.26091344,705.24,702.92,0.28452739]
[1736957983968,0.26091344,705.23,702.92,0.28452739]
[1736957984172,0.26091344,705.25,702.92,0.28452739]
[1736957984475,0.26091344,705.24,702.92,0.28452739]
[1736957984675,0.26091344,705.23,702.92,0.28452739]
[1736957984876,0.26091344,705.22,702.92,0.28452739]
[1736957985176,0.26091344,705.21,702.92,0.28452739]
[1736957985476,0.26086254,705.2,702.92,0.28452739]
[1736957985978,1.05924948,705.23,702.92,0.28452739]
[1736957986269,0.26086832,705.22,702.92,0.28452739]
[1736957986475,0.26086832,705.21,702.92,0.28452739]
[1736957986870,0.26086832,705.2,702.92,0.28452739]
[1736957987071,0.26086832,705.19,702.92,0.28452739]
[1736957987277,0.26086832,705.18,702.92,0.28452739]
[1736957987477,0.28358335,705.26,702.92,0.28452739]
[1736957987478,0.26086832,705.17,702.92,0.28452739]
[1736957987777,0.26086832,705.16,702.92,0.28452739]
[1736957987975,0.28366782,705.05,702.92,0.28452739]
[1736957988471,0.26087985,705.04,702.92,0.28452739]
[1736957988978,0.28371208,704.94,702.92,0.28452739]
[1736957989178,0.26087985,704.93,702.92,0.28452739]
[1736957989375,0.26087985,704.92,702.92,0.28452739]
[1736957989679,0.26087985,704.91,702.92,0.28452739]
[1736957989878,0.26087985,704.9,702.92,0.28452739]
[1736957990179,0.26087985,704.89,702.92,0.28452739]
[1736957990378,0.26087985,704.88,702.92,0.28452739]
[1736957990579,0.26087985,704.87,702.92,0.28452739]
[1736957990774,0.26087985,704.86,702.92,0.28452739]
[1736957990975,0.28371208,704.94,702.92,0.28452739]
[1736957990976,0.26087985,704.93,702.92,0.28452739]
[1736957991181,0.26087985,704.85,702.92,0.28452739]
[1736957991378,0.26087985,704.92,702.92,0.28452739]
[1736957991683,0.26087985,704.91,702.92,0.28452739]
[1736957991976,0.28371208,704.94,702.92,0.28452739]
[1736957992280,0.26085499,704.93,702.92,0.28452739]
[1736957993981,0.26084132,704.92,702.92,0.28452739]
[1736957994181,0.26084132,704.93,702.92,0.28452739]
[1736957994583,0.26084132,704.92,702.92,0.28452739]
[1736957994782,0.2608267,704.92,702.92,0.28452739]
[1736957994983,0.2608267,704.91,702.92,0.28452739]
[1736957995378,0.2608267,704.9,702.92,0.28452739]
[1736957995583,0.2608267,704.89,702.92,0.28452739]
[1736957995784,0.2608267,704.88,702.92,0.28452739]
[1736957995979,0.28371208,704.94,702.92,0.28452739]
[1736957995980,0.2608267,704.87,702.92,0.28452739]
[1736957996185,0.2608267,704.86,702.92,0.28452739]
[1736957996384,0.2608267,704.85,702.92,0.28452739]
[1736957996584,0.2608267,704.93,702.92,0.28452739]
[1736957996884,0.2608267,704.84,702.92,0.28452739]
[1736957997078,0.26080077,704.92,702.92,0.28452739]
[1736957997281,0.26080077,704.83,702.92,0.28452739]
[1736957997481,0.26080077,704.82,702.92,0.28452739]
[1736957997682,0.26080077,704.81,702.92,0.28452739]
[1736957997983,0.26080077,704.8,702.92,0.28452739]
[1736957998182,0.28371208,704.94,702.92,0.28452739]
[1736957998183,0.26080077,704.79,702.92,0.28452739]
[1736957998384,0.26080077,704.93,702.92,0.28452739]
[1736957998580,0.26080077,704.92,702.92,0.28452739]
[1736957998781,0.26080077,704.93,702.92,0.28452739]
[1736957998987,0.26080077,704.91,702.92,0.28452739]
[1736957999186,0.26080077,704.9,702.92,0.28452739]
[1736957999383,0.26080077,704.89,702.92,0.28452739]
[1736957999682,0.26080153,704.88,702.92,0.28452739]
[1736958000088,0.26080153,704.87,702.92,0.28452739]
[1736958000284,0.26080153,704.86,702.92,0.28452739]
[1736958000484,0.26080153,704.85,702.92,0.28452739]
[1736958000685,0.26080153,704.84,702.92,0.28452739]
[1736958000881,0.26080153,704.83,702.92,0.28452739]
[1736958001086,0.26080153,704.82,702.92,0.28452739]
[1736958001286,0.26080153,704.81,702.92,0.28452739]
[1736958001584,1.05924948,704.93,702.92,0.28452739]
[1736958001784,0.28372416,704.91,702.92,0.28452739]
[1736958001984,0.2608197,704.9,702.92,0.28452739]
[1736958002485,0.26084192,704.89,702.92,0.28452739]
[1736958002885,0.26084192,704.9,702.92,0.28452739]
[1736958003083,0.26084192,704.89,702.92,0.28452739]
[1736958003284,1.05924948,704.84,702.92,0.28452739]
[1736958003482,0.26084192,704.83,702.92,0.28452739]
[1736958003686,0.26084192,704.82,702.92,0.28452739]
[1736958003889,0.26084192,704.81,702.92,0.28452739]
[1736958004092,1.05924948,704.71,702.92,0.28452739]
[1736958004290,0.26084192,704.7,702.92,0.28452739]
[1736958004485,1.05924948,704.71,702.92,0.28452739]
[1736958004692,0.26086576,704.7,702.92,0.28452739]
[1736958005191,1.05924948,704.65,702.92,0.28452739]
[1736958005390,0.28383287,704.64,702.92,0.28452739]
[1736958007586,0.26091857,704.63,702.92,0.28452739]
[1736958008192,1.05924948,704.6,702.92,0.28452739]
[1736958008392,0.26092532,704.59,702.92,0.28452739]
[1736958008987,1.05924948,704.58,702.92,0.28452739]
[1736958009193,0.26092532,704.57,702.92,0.28452739]
[1736958010087,1.05924948,704.58,702.92,0.28452739]
[1736958010291,0.26093553,704.57,702.92,0.28452739]
[1736958010494,1.05924948,704.55,702.92,0.28452739]
[1736958010694,0.26093553,704.54,702.92,0.28452739]
[1736958010891,0.26093572,704.53,702.92,0.28452739]
[1736958011100,1.05924948,704.55,702.92,0.28452739]
[1736958011101,0.26093572,704.54,702.92,0.28452739]
[1736958011394,1.05924948,704.55,702.92,0.28452739]
[1736958011595,1.05924948,704.48,702.92,0.28452739]
[1736958012196,0.28383287,704.64,702.92,0.28452739]
[1736958014395,0.26087798,704.63,702.92,0.28452739]
[1736958015297,1.05924948,704.57,702.92,0.28452739]
[1736958015490,0.26087798,704.56,702.92,0.28452739]
[1736958015897,0.26090549,704.55,702.92,0.28452739]
[1736958016090,0.26090549,704.56,702.92,0.28452739]
[1736958016399,0.26090549,704.55,702.92,0.28452739]
[1736958017400,1.05924948,704.46,702.92,0.28452739]
[1736958017593,0.26090549,704.45,702.92,0.28452739]
[1736958018502,1.05924948,704.46,702.92,0.28452739]
[1736958018697,1.05924948,704.39,702.92,0.28452739]
[1736958020294,1.05924948,704.52,702.92,0.28452739]
[1736958020497,0.26098223,704.51,702.92,0.28452739]
[1736958021097,1.32023171,704.51,702.92,0.28452739]
[1736958021294,0.26098223,704.5,702.92,0.28452739]
[1736958021501,0.26099155,704.49,702.92,0.28452739]
[1736958021700,0.26099155,704.5,702.92,0.28452739]
[1736958021902,0.26099155,704.48,702.92,0.28452739]
[1736958022103,0.26099155,704.47,702.92,0.28452739]
[1736958022499,0.26099155,704.46,702.92,0.28452739]
[1736958022703,0.26099155,704.52,702.92,0.28452739]
[1736958023002,0.26097793,704.51,702.92,0.28452739]
[1736958023202,0.26097793,704.5,702.92,0.28452739]
[1736958023406,0.26097793,704.56,702.92,0.28452739]
[1736958023606,0.26097793,704.55,702.92,0.28452739]
[1736958023799,0.26097793,704.54,702.92,0.28452739]
[1736958024004,0.26097793,704.53,702.92,0.28452739]
[1736958024204,1.05924948,704.63,702.92,0.28452739]
[1736958024503,0.26097458,704.62,702.92,0.28452739]
[1736958024705,0.26097458,704.61,702.92,0.28452739]
[1736958024905,0.26097458,704.6,702.92,0.28452739]
[1736958025107,0.26097458,704.59,702.92,0.28452739]
[1736958025406,1.05924948,704.53,702.92,0.28452739]
[1736958025603,0.26097458,704.52,702.92,0.28452739]
[1736958026705,0.26097458,704.55,702.92,0.28452739]
[1736958026901,0.26097458,704.54,702.92,0.28452739]
[1736958027109,0.2609794,704.53,702.92,0.28452739]
[1736958027406,1.05924948,704.6,702.92,0.28452739]
[1736958027407,0.2609794,704.52,702.92,0.28452739]
[1736958027600,0.2609794,704.51,702.92,0.28452739]
[1736958027807,1.05924948,704.6,702.92,0.28452739]
[1736958028113,1.05924948,704.8,702.92,0.28452739]
[1736958028114,0.28385704,704.58,702.92,0.28452739]
[1736958028403,0.26097384,704.57,702.92,0.28452739]
[1736958029913,0.28385704,704.58,702.92,0.28452739]
[1736958030210,0.26098164,704.57,702.92,0.28452739]
[1736958032612,0.28386913,704.55,702.92,0.28452739]
[1736958032811,0.26099718,704.54,702.92,0.28452739]
[1736958035313,0.28386913,704.55,702.92,0.28452739]
[1736958035507,0.26099018,704.54,702.92,0.28452739]
[1736958038109,0.28386913,704.55,702.92,0.28452739]
[1736958038110,1.05924948,704.47,702.92,0.28452739]
[1736958038315,0.26099068,704.46,702.92,0.28452739]
[1736958039310,1.05924948,704.45,702.92,0.28452739]
[1736958040117,0.28386913,704.55,702.92,0.28452739]
[1736958049122,0.28386913,704.55,702.92,1.33615513]
[1736958050319,0.28386913,704.55,702.97,1.05162774]
[1736958051331,0.28386913,704.55,702.92,0.28452739]
[1736958057830,0.28386913,704.55,702.93,2.76049439]
[1736958058729,0.28386913,704.55,702.94,0.2845193]
[1736958063430,0.28386913,704.55,702.95,2.49226354]
[1736958063633,0.28386913,704.55,702.96,5.2532939]
[1736958063833,0.28386913,704.55,702.97,2.49226354]
[1736958064137,0.28386913,704.55,702.98,2.49226354]
[1736958064336,0.28386913,704.55,703.03,1.05162774]
[1736958065735,0.28386913,704.55,702.96,1.05162774]
[1736958065930,0.26089461,704.54,702.97,5.2548162]
[1736958066131,0.28386913,704.55,702.98,2.49307564]
[1736958066335,0.28386913,704.55,702.99,2.49307564]
[1736958066535,0.28386913,704.55,703.0,2.49307564]
[1736958066739,0.28386913,704.55,703.01,3.54470338]
[1736958066938,0.28386913,704.55,703.02,2.49307564]
[1736958067140,0.28386913,704.55,703.03,2.49307564]
[1736958067334,0.28386913,704.55,703.04,5.2548162]
[1736958067637,0.28386913,704.55,703.05,2.49307564]
[1736958067839,0.28386913,704.55,703.06,3.54470338]
[1736958068037,0.28386913,704.55,703.07,2.49307564]
[1736958068237,0.28386913,704.55,703.08,2.49307564]
[1736958068438,0.28386913,704.55,703.09,2.49307564]
[1736958068639,0.28386913,704.55,703.1,2.49307564]
[1736958068939,0.28386913,704.55,703.14,1.05162774]
[1736958069834,0.28386913,704.55,703.06,1.05162774]
[1736958070032,0.28386913,704.55,703.07,1.64034155]
[1736958070438,0.28386913,704.55,703.06,1.05162774]
[1736958070842,0.28386913,704.55,702.94,0.2845193]
[1736958070843,0.28386913,704.55,703.05,1.05162774]
[1736958071939,0.28386913,704.55,702.97,1.05162774]
[1736958072135,0.28386913,704.55,702.98,2.49223553]
[1736958072342,0.28386913,704.55,702.99,2.49223777]
[1736958072639,0.28386913,704.55,703.02,1.05162774]
[1736958072839,0.28386913,704.55,703.03,1.64033817]
[1736958073634,0.28386913,704.55,703.04,1.05162774]
[1736958074239,0.26089749,704.54,703.04,1.05162774]
[1736958074637,0.26089749,704.54,703.03,1.05162774]
[1736958075336,0.26089749,704.54,702.94,0.2845193]
[1736958075739,0.28387719,704.53,702.94,0.2845193]
[1736958076041,0.26089749,704.52,702.94,0.2845193]
[1736958076342,0.26096491,704.51,702.94,0.2845193]
[1736958076541,0.26096491,704.52,702.94,0.2845193]
[1736958076739,0.26096491,704.51,702.94,0.2845193]
[1736958076940,0.26096491,704.5,702.94,0.2845193]
[1736958077139,0.26096491,704.49,702.94,0.2845193]
[1736958077340,0.26096491,704.48,702.94,0.2845193]
[1736958077538,0.26096491,704.47,702.94,0.2845193]
[1736958077735,0.54487031,704.46,702.94,0.2845193]
[1736958078041,0.54487434,704.45,702.94,0.2845193]
[1736958078241,5.49497778,705.34,702.94,0.2845193]
[1736958078242,0.28391346,704.44,702.94,0.2845193]
[1736958100353,0.26103584,704.43,702.94,0.2845193]
[1736958101963,0.28392555,704.41,702.94,0.2845193]
[1736958102157,0.26103584,704.4,702.94,0.2845193]
[1736958102764,0.28393764,704.38,702.94,0.2845193]
[1736958105465,0.26097458,704.37,702.94,0.2845193]
[1736958105859,0.28393764,704.38,702.94,0.2845193]
[1736958120665,0.2609843,704.37,702.94,0.2845193]
[1736958121373,0.2839457,704.36,702.94,0.2845193]
[1736958133187,1.05924948,704.91,703.0,1.05162774]
[1736958133489,0.28372818,704.9,703.01,5.25914124]
[1736958133683,0.26081225,704.89,703.02,2.49444603]
[1736958133883,0.26081225,704.89,703.03,2.49444603]
[1736958134081,0.26081225,704.89,703.15,1.05162774]
[1736958134281,0.28372818,704.9,703.15,1.05162774]
[1736958135286,0.28372818,704.9,703.13,1.05162774]
[1736958135688,0.28372818,704.9,703.15,0.28443433]
[1736958154999,0.26073348,704.89,703.15,0.28443433]
[1736958155198,0.28372818,704.9,703.15,0.28443433]
[1736958155199,0.26073792,704.88,703.15,0.28443433]
[1736958155399,0.28372818,704.9,703.15,0.28443433]
[1736958162715,0.28372818,704.9,703.16,1.05162774]
[1736958163017,0.28372818,704.9,703.18,0.28442219]
[1736958163516,0.28372818,704.9,703.19,1.05162774]
[1736958164210,0.28372818,704.9,703.21,0.28441006]
[1736958166813,0.28372818,704.9,703.22,1.62821461]
[1736958167615,0.28372818,704.9,703.21,0.28441006]
[1736958167616,0.28372818,704.9,703.51,1.05162774]
[1736958168615,0.28372818,704.9,703.54,1.05162774]
[1736958170217,0.28372818,704.9,703.57,1.05162774]
[1736958171217,0.28372818,704.9,703.21,0.28441006]
[1736958171218,0.28372818,704.9,703.62,1.05162774]
[1736958171517,0.28372818,704.9,703.63,0.28424029]
[1736958173920,0.28372818,704.9,703.65,1.05162774]
[1736958174619,0.28372818,704.9,703.74,1.05162774]
[1736958175223,1.05924948,705.12,703.74,1.05162774]
[1736958175524,1.05924948,705.29,703.66,0.28422817]
[1736958176415,1.05924948,705.37,703.66,0.28422817]
[1736958177023,1.05924948,705.37,703.67,1.05162774]
[1736958177719,1.05924948,705.5,703.67,1.05162774]
[1736958177918,0.2834909,705.49,703.67,1.05162774]
[1736958178517,0.2834909,705.49,703.69,0.28421606]
[1736958182124,0.26054175,705.48,703.7,1.62982358]
[1736958182624,0.2834909,705.49,703.71,2.74351385]
[1736958182827,0.2834909,705.49,703.72,1.62982358]
[1736958183019,0.2834909,705.49,703.73,0.85070016]
[1736958183321,0.26052703,705.48,703.74,1.62982358]
[1736958183525,0.26052484,705.48,703.71,2.74351385]
[1736958183826,0.2834909,705.49,703.9,1.0563589]
[1736958184725,0.2834909,705.49,703.69,0.28421606]
[1736958186422,0.2834909,705.49,703.75,1.0563589]
[1736958186921,0.2834909,705.49,703.76,1.62964048]
[1736958187120,0.2834909,705.49,703.77,0.85064948]
[1736958187325,0.2834909,705.49,703.78,1.62964048]
[1736958187528,0.2834909,705.49,703.79,0.85064948]
[1736958187828,0.2834909,705.49,703.8,1.62964048]
[1736958188022,0.26051819,705.48,703.81,1.62964048]
[1736958188225,0.26051819,705.48,703.82,1.62964048]
[1736958188428,0.2834909,705.49,703.8,1.0563589]
[1736958188629,0.26052175,705.48,703.81,1.62980015]
[1736958188923,0.2834909,705.49,703.81,1.62980015]
[1736958189527,0.2834909,705.49,703.82,1.62980015]
[1736958189723,0.2834909,705.49,703.83,1.62980015]
[1736958189927,0.2834909,705.49,703.84,1.62980015]
[1736958190728,0.2834909,705.49,703.78,1.0563589]
[1736958191328,0.2834909,705.49,703.69,0.28421606]
[1736958208233,0.2834909,705.49,703.7,1.0563589]
[1736958208931,0.2834909,705.49,703.75,1.0563589]
[1736958209137,0.2834909,705.49,703.77,0.28418375]
[1736958209637,0.2834909,705.49,703.77,1.34054265]
[1736958210640,0.2834909,705.49,703.8,1.0563589]
[1736958211138,0.2834909,705.49,703.82,0.28416356]
[1736958211533,0.2834909,705.49,703.85,1.0563589]
[1736958211740,0.2834909,705.49,703.82,0.28416356]
[1736958213337,0.2834909,705.49,703.99,1.05864126]
[1736958214544,0.2834909,705.49,703.47,2.16139257]
[1736958214545,0.2834909,705.49,704.05,1.05864126]
[1736958215040,0.2834909,705.49,704.06,0.28406669]
[1736958221344,1.05626593,705.48,704.06,0.28406669]
[1736958221548,0.28349894,705.47,704.06,0.28406669]